Workbook

Sheet Classsificació
A1: COPA BOTIFARRA SANT MAURE'14
A2: 17 gener 2014
L4: CLASSIFICACIÓ | P4: RONDA 1 | S4: RONDA 2 | V4: RONDA 3 | Y4: RONDA 4 | AB4: RONDA 5 | AE4: FINAL
B5: Equip | C5: Jugador | D5: Partits | L5: Premi | M5: Diferència | N5: Favor | O5: Contra | P5: Premi | Q5: Favor | R5: Contra | S5: Premi | T5: Favor | U5: Contra | V5: Premi | W5: Favor | X5: Contra | Y5: Premi | Z5: Favor | AA5: Contra | AB5: Premi | AC5: Favor | AD5: Contra | AE5: Premi | AF5: Favor | AG5: Contra
A6: 1 | B6: 8 | C6: Josep Mª Grau | J6: =RAND() -> 0.5778401758 | K6: =+N6+J6 -> 380.5778402 | L6: =+P6+S6+V6+Y6+AB6+AE6 -> 15 | M6: =+N6-O6 -> 304 | N6: =+Q6+T6+W6+Z6+AC6+AF6 -> 380 | O6: =+R6+U6+X6+AA6+AD6+AG6 -> 76 | P6: 3 | Q6: 22 | R6: 9 | S6: 3 | T6: 106 | U6: 2 | V6: 3 | W6: 21 | X6: 11 | Y6: 3 | Z6: 38 | AA6: 12 | AB6: 0 | AC6: 19 | AD6: 42 | AE6: 3 | AF6: 174 | AG6: 0
A7: =1+A6 -> 2 | B7: 12 | C7: Montse Nogué | J7: 0.07419359424 | K7: 166.0741936 | L7: 15 | M7: -79 | N7: 166 | O7: 245 | P7: 3 | Q7: 29 | R7: 11 | S7: 3 | T7: 31 | U7: 29 | V7: 3 | W7: 26 | X7: 0 | Y7: 3 | Z7: 38 | AA7: 12 | AB7: 3 | AC7: 42 | AD7: 19 | AE7: 0 | AF7: 0 | AG7: 174
A8: =1+A7 -> 3 | B8: 20 | C8: Doménec Muntané | J8: 0.6943402588 | K8: 358.6943403 | L8: 13 | M8: 288 | N8: 358 | O8: 70 | P8: 3 | Q8: 17 | R8: 9 | S8: 3 | T8: 106 | U8: 2 | V8: 1 | W8: 11 | X8: 21 | Y8: 0 | Z8: 12 | AA8: 38 | AB8: 3 | AC8: 38 | AD8: 0 | AE8: 3 | AF8: 174 | AG8: 0
A9: 4 | B9: 10 | C9: Jaume Farré | J9: 0.1453737577 | K9: 179.1453738 | L9: 12 | M9: -70 | N9: 179 | O9: 249 | P9: 3 | Q9: 48 | R9: 5 | S9: 3 | T9: 56 | U9: 2 | V9: 3 | W9: 21 | X9: 11 | Y9: 0 | Z9: 12 | AA9: 38 | AB9: 3 | AC9: 42 | AD9: 19 | AE9: 0 | AF9: 0 | AG9: 174
A10: 5 | B10: 3 | C10: Mª José Nevado | J10: 0.9250400254 | K10: 146.92504 | L10: 10 | M10: 105 | N10: 146 | O10: 41 | P10: 1 | Q10: 9 | R10: 17 | S10: 3 | T10: 70 | U10: 0 | V10: 3 | W10: 26 | X10: 0 | Y10: 0 | Z10: 3 | AA10: 24 | AB10: 3 | AC10: 38 | AD10: 0
A11: 6 | B11: 1 | C11: Joan Carles | J11: 0.6251000864 | K11: 141.6251001 | L11: 10 | M11: 75 | N11: 141 | O11: 66 | P11: 3 | Q11: 38 | R11: 0 | S11: 3 | T11: 56 | U11: 2 | V11: 1 | W11: 11 | X11: 21 | Y11: 0 | Z11: 3 | AA11: 24 | AB11: 3 | AC11: 33 | AD11: 19
A12: 7 | B12: 19 | C12: MªAngels Estévez | J12: 0.8599461166 | K12: 125.8599461 | L12: 10 | M12: 46 | N12: 125 | O12: 79 | P12: 3 | Q12: 38 | R12: 0 | S12: 1 | T12: 29 | U12: 31 | V12: 0 | W12: 0 | X12: 26 | Y12: 3 | Z12: 25 | AA12: 3 | AB12: 3 | AC12: 33 | AD12: 19
A13: 8 | B13: 18 | C13: Jaume Llobet | J13: 0.4514517961 | K13: 170.4514518 | L13: 9 | M13: 95 | N13: 170 | O13: 75 | P13: 0 | Q13: 9 | R13: 22 | S13: 3 | T13: 70 | U13: 0 | V13: 0 | W13: 4 | X13: 37 | Y13: 3 | Z13: 38 | AA13: 0 | AB13: 3 | AC13: 49 | AD13: 16
A14: 9 | B14: 15 | C14: Josep Minguet | J14: 0.2451088327 | K14: 129.2451088 | L14: 9 | M14: 51 | N14: 129 | O14: 78 | P14: 0 | Q14: 11 | R14: 29 | S14: 3 | T14: 38 | U14: 0 | V14: 3 | W14: 37 | X14: 4 | Y14: 3 | Z14: 24 | AA14: 3 | AB14: 0 | AC14: 19 | AD14: 42
A15: 10 | B15: 6 | C15: Jordi Marzá | J15: 0.8994031784 | K15: 126.8994032 | L15: 9 | M15: 41 | N15: 126 | O15: 85 | P15: 0 | Q15: 5 | R15: 48 | S15: 3 | T15: 38 | U15: 0 | V15: 3 | W15: 40 | X15: 1 | Y15: 3 | Z15: 24 | AA15: 3 | AB15: 0 | AC15: 19 | AD15: 33
A16: 11 | B16: 17 | C16: Jordi Sarle | J16: 0.03527480666 | K16: 129.0352748 | L16: 9 | M16: 24 | N16: 129 | O16: 105 | P16: 3 | Q16: 22 | R16: 9 | S16: 3 | T16: 31 | U16: 29 | V16: 0 | W16: 0 | X16: 26 | Y16: 3 | Z16: 57 | AA16: 8 | AB16: 0 | AC16: 19 | AD16: 33
A17: 12 | B17: 4 | C17: Núria Roca | J17: 0.3753653352 | K17: 136.3753653 | L17: 9 | M17: 17 | N17: 136 | O17: 119 | P17: 3 | Q17: 48 | R17: 5 | S17: 0 | T17: 2 | U17: 56 | V17: 3 | W17: 40 | X17: 1 | Y17: 0 | Z17: 8 | AA17: 57 | AB17: 3 | AC17: 38 | AD17: 0
A18: 13 | B18: 5 | C18: Marc Vidal | J18: 0.363096421 | K18: 137.3630964 | L18: 9 | M18: 12 | N18: 137 | O18: 125 | P18: 0 | Q18: 5 | R18: 48 | S18: 3 | T18: 38 | U18: 0 | V18: 3 | W18: 37 | X18: 4 | Y18: 0 | Z18: 8 | AA18: 57 | AB18: 3 | AC18: 49 | AD18: 16
A19: 14 | B19: 9 | C19: Miquel Gual | J19: 0.7947316764 | K19: 106.7947317 | L19: 9 | M19: -12 | N19: 106 | O19: 118 | P19: 0 | Q19: 11 | R19: 29 | S19: 0 | T19: 0 | U19: 70 | V19: 3 | W19: 38 | X19: 0 | Y19: 3 | Z19: 25 | AA19: 3 | AB19: 3 | AC19: 32 | AD19: 16
A20: 15 | B20: 14 | C20: Josefina Bacardit | J20: 0.3388189473 | K20: 116.3388189 | L20: 7 | M20: -12 | N20: 116 | O20: 128 | P20: 3 | Q20: 29 | R20: 11 | S20: 1 | T20: 29 | U20: 31 | V20: 0 | W20: 4 | X20: 37 | Y20: 3 | Z20: 38 | AA20: 0 | AB20: 0 | AC20: 16 | AD20: 49
A21: 16 | B21: 7 | C21: Mercè Marinel·lo | J21: 0.3719897563 | K21: 122.3719898 | L21: 7 | M21: -58 | N21: 122 | O21: 180 | P21: 1 | Q21: 9 | R21: 17 | S21: 0 | T21: 2 | U21: 106 | V21: 3 | W21: 38 | X21: 0 | Y21: 3 | Z21: 57 | AA21: 8 | AB21: 0 | AC21: 16 | AD21: 49
A22: 17 | B22: 13 | C22: Fina Castells | J22: 0.4456849023 | K22: 76.4456849 | L22: 6 | M22: -61 | N22: 76 | O22: 137 | P22: 3 | Q22: 38 | R22: 0 | S22: 0 | T22: 2 | U22: 56 | V22: 0 | W22: 1 | X22: 40 | Y22: 0 | Z22: 3 | AA22: 25 | AB22: 3 | AC22: 32 | AD22: 16
A23: 18 | B23: 11 | C23: Chema Figueras | J23: 0.1830855157 | K23: 74.18308552 | L23: 6 | M23: -113 | N23: 74 | O23: 187 | P23: 3 | Q23: 17 | R23: 9 | S23: 0 | T23: 2 | U23: 106 | V23: 0 | W23: 1 | X23: 40 | Y23: 3 | Z23: 38 | AA23: 0 | AB23: 0 | AC23: 16 | AD23: 32
A24: 19 | B24: 16 | C24: Cisco Colomé | J24: 0.02482195131 | K24: 66.02482195 | L24: 3 | M24: -83 | N24: 66 | O24: 149 | P24: 0 | Q24: 9 | R24: 22 | S24: 0 | T24: 0 | U24: 70 | V24: 3 | W24: 38 | X24: 0 | Y24: 0 | Z24: 3 | AA24: 25 | AB24: 0 | AC24: 16 | AD24: 32
A25: 20 | D25: 20 | J25: =RAND() -> 0.2647751219 | K25: =+N25+J25 -> 38.26477512 | L25: -20 | M25: =+N25-O25 -> 38 | N25: =+Q25+T25+W25+Z25+AC25+AF25 -> 38 | O25: =+R25+U25+X25+AA25+AD25+AG25 -> 0 | P25: 3 | Q25: 38 | R25: 0
A26: 21 | D26: 20 | J26: 0.6740556425 | K26: 38.67405564 | L26: -20 | M26: 38 | N26: 38 | O26: 0 | P26: 3 | Q26: 38 | R26: 0
A27: 22 | D27: 20 | J27: 0.6085646248 | K27: 38.60856462 | L27: -20 | M27: 38 | N27: 38 | O27: 0 | P27: 3 | Q27: 38 | R27: 0
A28: 23 | B28: 2 | C28: Carles Rodon | J28: 0.7930879464 | K28: 38.79308795 | L28: -20 | M28: 38 | N28: 38 | O28: 0 | P28: 3 | Q28: 38 | R28: 0
A29: 24 | D29: 20 | J29: 0.8914363676 | K29: 38.89143637 | L29: -20 | M29: 38 | N29: 38 | O29: 0 | P29: 3 | Q29: 38 | R29: 0
A30: 25 | D30: 20 | J30: 0.3709615483 | K30: 38.37096155 | L30: -20 | M30: 38 | N30: 38 | O30: 0 | P30: 3 | Q30: 38 | R30: 0
A31: 26 | D31: 20 | J31: 0.1561998811 | K31: 38.15619988 | L31: -20 | M31: 38 | N31: 38 | O31: 0 | P31: 3 | Q31: 38 | R31: 0
A32: 27 | D32: 20 | J32: 0.6767719401 | K32: 38.67677194 | L32: -20 | M32: 38 | N32: 38 | O32: 0 | P32: 3 | Q32: 38 | R32: 0
A33: 28 | D33: 20 | J33: 0.8356007504 | K33: 38.83560075 | L33: -20 | M33: 38 | N33: 38 | O33: 0 | P33: 3 | Q33: 38 | R33: 0
A34: 29 | D34: 20 | J34: 0.5594996577 | K34: 38.55949966 | L34: -20 | M34: 38 | N34: 38 | O34: 0 | P34: 3 | Q34: 38 | R34: 0
A35: 30 | D35: 20 | J35: 0.4521307122 | K35: 38.45213071 | L35: -20 | M35: 38 | N35: 38 | O35: 0 | P35: 3 | Q35: 38 | R35: 0
A36: 31 | D36: 20 | J36: 0.2612450967 | K36: 38.2612451 | L36: -20 | M36: 38 | N36: 38 | O36: 0 | P36: 3 | Q36: 38 | R36: 0
A37: 32 | D37: 20 | J37: 0.9011787039 | K37: 38.9011787 | L37: -20 | M37: 38 | N37: 38 | O37: 0 | P37: 3 | Q37: 38 | R37: 0
A38: 33 | D38: 20 | J38: 0.0716016815 | K38: 38.07160168 | L38: -20 | M38: 38 | N38: 38 | O38: 0 | P38: 3 | Q38: 38 | R38: 0
A39: 34 | D39: 20 | J39: 0.9670965246 | K39: 38.96709652 | L39: -20 | M39: 38 | N39: 38 | O39: 0 | P39: 3 | Q39: 38 | R39: 0
A40: 35 | D40: 20 | J40: 0.2431721463 | K40: 38.24317215 | L40: -20 | M40: 38 | N40: 38 | O40: 0 | P40: 3 | Q40: 38 | R40: 0
C41: Descansa
Q42: =SUM(Q6:Q24) -> 414 | R42: =SUM(R6:R24) -> 300 | T42: =SUM(T6:T24) -> 706 | U42: =SUM(U6:U24) -> 592 | W42: =SUM(W6:W24) -> 394 | X42: =SUM(X6:X24) -> 280 | Z42: =SUM(Z6:Z24) -> 454 | AA42: =SUM(AA6:AA24) -> 340 | AC42: =SUM(AC6:AC24) -> 566 | AD42: =SUM(AD6:AD24) -> 452 | AF42: =+Q42+T42+W42+Z42+AC42 -> 2534 | AG42: =+R42+U42+X42+AA42+AD42 -> 1964
Q43: =+Q6+Q7+Q8+Q9 -> 116 | R43: =+R6+R7+R8+R9 -> 34 | T43: =+T6+T7+T9+T10 -> 263 | U43: =+U6+U7+U9+U10 -> 33 | W43: =+W6+W7+W14+W15 -> 124 | X43: =+X6+X7+X14+X15 -> 16 | Z43: =+Z6+Z12+Z14+Z16 -> 144 | AA43: =+AA6+AA12+AA14+AA16 -> 26 | AC43: =+AC7+AC11+AC13+AC19 -> 156 | AD43: =+AD7+AD11+AD13+AD19 -> 70 | AF43: =+Q43+T43+W43+Z43+AC43 -> 803 | AG43: =+R43+U43+X43+AA43+AD43 -> 179
R44: =(Q43-R43)/4 -> 20.5 | U44: =(T43-U43)/4 -> 57.5 | X44: =(W43-X43)/4 -> 27 | AA44: =(Z43-AA43)/4 -> 29.5 | AD44: =(AC43-AD43)/4 -> 21.5 | AG44: =+AF43-AG43 -> 624
AE45: Resultat mitjà | AF45: =+AF43/20 -> 40.15 | AG45: =+AG43/20 -> 8.95
AF46: Diferència mitjana | AG46: =+AG44/20 -> 31.2
L48: CLASSIFICACIÓ | AE48: RONDA 6
C49: Jugador | E49: R 1 | F49: R 2 | G49: R 3 | H49: R 4 | I49: R 5 | J49: R 6 | L49: Premi | M49: Diferència | N49: Favor | O49: Contra
A50: =RANK(D50,D$50:D$69,0) -> 1 | D50: =+L50*1000+M50 -> 0 | L50: =+P50+S50+V50+Y50+AB50+AE50 -> 0 | M50: =+N50-O50 -> 0 | N50: =+Q50+T50+W50+Z50+AC50+AF50 -> 0 | O50: =+R50+U50+X50+AA50+AD50+AG50 -> 0
A51: =RANK(D51,D$50:D$69,0) -> 1 | D51: =+L51*1000+M51 -> 0 | L51: 0 | M51: 0 | N51: 0 | O51: 0
A52: =RANK(D52,D$50:D$69,0) -> 1 | D52: 0 | L52: 0 | M52: 0 | N52: 0 | O52: 0
A53: =RANK(D53,D$50:D$69,0) -> 1 | D53: 0 | L53: 0 | M53: 0 | N53: 0 | O53: 0
A54: =RANK(D54,D$50:D$69,0) -> 1 | D54: 0 | L54: 0 | M54: 0 | N54: 0 | O54: 0
A55: =RANK(D55,D$50:D$69,0) -> 1 | D55: 0 | L55: 0 | M55: 0 | N55: 0 | O55: 0
A56: =RANK(D56,D$50:D$69,0) -> 1 | D56: 0 | L56: 0 | M56: 0 | N56: 0 | O56: 0
A57: =RANK(D57,D$50:D$69,0) -> 1 | D57: 0 | L57: 0 | M57: 0 | N57: 0 | O57: 0
A58: =RANK(D58,D$50:D$69,0) -> 1 | D58: 0 | L58: 0 | M58: 0 | N58: 0 | O58: 0
A59: =RANK(D59,D$50:D$69,0) -> 1 | D59: 0 | L59: 0 | M59: 0 | N59: 0 | O59: 0
A60: =RANK(D60,D$50:D$69,0) -> 1 | D60: 0 | L60: 0 | M60: 0 | N60: 0 | O60: 0
A61: =RANK(D61,D$50:D$69,0) -> 1 | D61: 0 | L61: 0 | M61: 0 | N61: 0 | O61: 0
A62: =RANK(D62,D$50:D$69,0) -> 1 | D62: 0 | L62: 0 | M62: 0 | N62: 0 | O62: 0
A63: =RANK(D63,D$50:D$69,0) -> 1 | D63: 0 | L63: 0 | M63: 0 | N63: 0 | O63: 0
A64: =RANK(D64,D$50:D$69,0) -> 1 | D64: 0 | L64: 0 | M64: 0 | N64: 0 | O64: 0
A65: =RANK(D65,D$50:D$69,0) -> 1 | D65: 0 | L65: 0 | M65: 0 | N65: 0 | O65: 0
A66: =RANK(D66,D$50:D$69,0) -> 1 | D66: 0 | L66: 0 | M66: 0 | N66: 0 | O66: 0
A67: =RANK(D67,D$50:D$69,0) -> 1 | D67: 0 | L67: 0 | M67: 0 | N67: 0 | O67: 0
A68: =RANK(D68,D$50:D$69,0) -> 1 | D68: =+L68*1000+M68 -> 0 | L68: =+P68+S68+V68+Y68+AB68+AE68 -> 0 | M68: =+N68-O68 -> 0 | N68: =+Q68+T68+W68+Z68+AC68+AF68 -> 0 | O68: =+R68+U68+X68+AA68+AD68+AG68 -> 0
A69: =RANK(D69,D$50:D$69,0) -> 1 | D69: =+L69*1000+M69 -> 0 | L69: =+P69+S69+V69+Y69+AB69+AE69 -> 0 | M69: =+N69-O69 -> 0 | N69: =+Q69+T69+W69+Z69+AC69+AF69 -> 0 | O69: =+R69+U69+X69+AA69+AD69+AG69 -> 0

Sheet Resultats
A1: PARTIDES ST MAURE'14
A3: Taula | B3: Ronda | C3: EQUIPS | G3: Local | H3: Visitant | I3: Resultat
A4: 1 | B4: 1 | C4: 3 | D4: 7 | E4: 11 | F4: 20 | I4: 9-17
A5: 2 | B5: 1 | C5: 12 | D5: 14 | E5: 15 | F5: 9 | I5: 29-11
A6: 3 | B6: 1 | C6: 16 | D6: 18 | E6: 8 | F6: 17 | I6: 9-22
A7: 4 | B7: 1 | C7: 6 | D7: 5 | E7: 4 | F7: 10 | I7: 5-48
A8: 1 | B8: 2 | C8: 4 | D8: 13 | E8: 1 | F8: 10 | I8: 2-56
A9: 2 | B9: 2 | C9: 19 | D9: 14 | E9: 12 | F9: 17 | I9: 29-31
A10: 3 | B10: 2 | C10: 8 | D10: 20 | E10: 11 | F10: 7 | I10: 106-2
A11: 4 | B11: 2 | C11: 3 | D11: 18 | E11: 16 | F11: 9 | I11: 70-0
A12: 1 | B12: 3 | C12: 8 | D12: 10 | E12: 20 | F12: 1 | I12: 21-11
A13: 2 | B13: 3 | C13: 12 | D13: 3 | E13: 17 | F13: 19 | I13: 26-0
A14: 3 | B14: 3 | C14: 14 | D14: 18 | E14: 5 | F14: 15 | I14: 4-37
A15: 4 | B15: 3 | C15: 4 | D15: 6 | E15: 11 | F15: 13 | I15: 40-1
A16: 1 | B16: 4 | C16: 8 | D16: 12 | E16: 10 | F16: 20 | I16: 38-12
A17: 2 | B17: 4 | C17: 3 | D17: 1 | E17: 15 | F17: 6 | I17: 3-24
A18: 3 | B18: 4 | C18: 4 | D18: 5 | E18: 17 | F18: 7 | I18: 8-57
A19: 4 | B19: 4 | C19: 19 | D19: 9 | E19: 16 | F19: 13 | I19: 3-24
A20: 1 | B20: 5 | C20: 8 | D20: 15 | E20: 10 | F20: 12 | I20: 19-42
A21: 2 | B21: 5 | C21: 6 | D21: 17 | E21: 1 | F21: 19 | I21: 19-33
A22: 3 | B22: 5 | C22: 7 | D22: 14 | E22: 5 | F22: 18 | I22: 16-49
A23: 4 | B23: 5 | C23: 9 | D23: 13 | E23: 11 | F23: 16 | I23: 32-16
A24: 1 | B24: FINAL | C24: 12 | D24: 10 | E24: 8 | F24: 20

Sheet Inscripcions
A2: SOPAR BOTIFARRA | E2: CAMPIONAT BOTIFARRA
B5: PARTICIPANTS | F5: PARTICIPANTS | J5: PARTICIPANTS
A7: 1 | E7: 1 | I7: 17
A8: 2 | E8: =+E7+1 -> 2 | I8: =+I7+1 -> 18
A9: 3 | E9: =+E8+1 -> 3 | I9: =+I8+1 -> 19
A10: 4 | E10: 4 | I10: 20
A11: 5 | E11: 5 | I11: 21
A12: 6 | E12: 6 | I12: 22
A13: 7 | E13: 7 | I13: 23
A14: 8 | E14: 8 | I14: 24
A15: 9 | E15: 9 | I15: 25
A16: 10 | E16: 10 | I16: 26
A17: 11 | E17: 11 | I17: 27
A18: 12 | E18: 12 | I18: 28
A19: 13 | E19: 13 | I19: 29
A20: 14 | E20: 14 | I20: 30
A21: 15 | E21: 15 | I21: 31
A22: 16 | E22: 16 | I22: 32

Sheet Control
B1: CONTROL
C3: 1 | D3: 2 | E3: 3 | F3: 4 | G3: 5 | H3: 6 | I3: 7 | J3: 8 | K3: 9 | L3: 10 | M3: 11 | N3: 12 | O3: 13 | P3: 14 | Q3: 15 | R3: 16 | S3: 17 | T3: 18 | U3: 19 | V3: 20 | W3: =+V3+1 -> 21 | X3: =+W3+1 -> 22 | Y3: 23 | Z3: 24 | AA3: 25 | AB3: 26 | AC3: 27 | AD3: 28 | AE3: 29 | AF3: 30 | AG3: 31
B4: 1
C5: 2
D6: 3
E7: 4
F8: 5
G9: 6
H10: 7
I11: 8
J12: 9
K13: 10
L14: 11
M15: 12
N16: 13
O17: 14
P18: 15
Q19: 16
R20: 17
S21: 18
T22: 19
U23: 20
V24: 21
W25: 22
X26: 23
Y27: 24
Z28: 25
AA29: 26
AB30: 27
AC31: 28
AD32: 29
AE33: 30
AF34: 31
AG35: 32

Sheet Quadre lliga
B2: CLASSIFICACIÓ CAMPIONAT BOTIFARRA'06
B5: nº | C5: Dif | D5: Punts | E5: nº | F5: Dif | G5: Punts | H5: nº | I5: Dif | J5: Punts | K5: nº | L5: Dif | M5: Punts | N5: nº | O5: Dif | P5: Punts | Q5: nº | R5: Dif | S5: Punts | T5: nº | U5: Dif | V5: Punts | W5: nº | X5: Dif | Y5: Punts | Z5: nº | AA5: Dif | AB5: Punts | AC5: nº | AD5: Dif | AE5: Punts | AF5: nº | AG5: Dif | AH5: Punts | AI5: nº | AJ5: Dif | AK5: Punts

Sheet Hoja1

Sheet Hoja2
A1: Companys | F1: Companys | J1: Companys | N1: Companys
A2: JUGADOR: | F2: JUGADOR: | J2: JUGADOR: | N2: JUGADOR:
A3: Mà | B3: Taula: | F3: Ronda | G3: COMPANY | J3: Ronda | K3: COMPANY | N3: Ronda | O3: COMPANY
A4: 1 | F4: 1 | J4: 1 | N4: 1
A5: 2 | F5: 2 | J5: 2 | N5: 2
A6: 3 | F6: 3 | J6: 3 | N6: 3
A7: 4 | F7: 4 | J7: 4 | N7: 4
A8: Total | F8: 6 | J8: 6 | N8: 6
A11: Companys | F11: Companys | J11: Companys | N11: Companys
A12: JUGADOR: | F12: JUGADOR: | J12: JUGADOR: | N12: JUGADOR:
A13: Ronda | C13: COMPANY | F13: Ronda | G13: COMPANY | J13: Ronda | K13: COMPANY | N13: Ronda | O13: COMPANY
A14: 1 | F14: 1 | J14: 1 | N14: 1
A15: 2 | F15: 2 | J15: 2 | N15: 2
A16: 3 | F16: 3 | J16: 3 | N16: 3
A17: 4 | F17: 4 | J17: 4 | N17: 4
A18: 5 | F18: 5 | J18: 5 | N18: 5
A19: 6 | F19: 6 | J19: 6 | N19: 6
A22: Companys BOTIFARRA'07
A23: JUGADOR NÚMERO:
A24: Ronda | C24: COMPANY
A25: 1
A26: 2
A27: 3
A28: 4
A29: 5
A30: 6

Sheet Taules
A1: TAULES BOTIFARRA'07
A3: Taula | B3: Ronda | C3: EQUIPS | D3: Local | E3: Visitant
